lending/lending_fUSD_20250130
["ID","MTS","AMOUNT","RATE_DAILY","PERIOD"]
[350984486,1738267832440,-4581.39405295,0.00019078,2]
[350984488,1738267832450,-26883.9255,0.00019078,2]
[350984490,1738267832460,-5000.0,0.00019078,2]
[350984492,1738267832470,-3253.6259,0.00019078,2]
[350984494,1738267832480,-500.0,0.00019078,2]
[350984496,1738267832489,-2512.0142,0.00019078,2]
[350984498,1738267832499,-1000.0,0.00019078,2]
[350984500,1738267832508,-20556.25605159,0.00019078,2]
[350984549,1738267832986,-49621.30201054,0.00019078,2]
[350984553,1738267833016,-457.32324151,0.00019078,2]
[350984556,1738267833028,-413.21193929,0.00019078,2]
[350984558,1738267833039,-324.00694575,0.00019078,2]
[350984560,1738267833051,-579.1131891,0.00019078,2]
[350984562,1738267833063,-487.25,0.00019078,2]
[350984564,1738267833075,-2009.62986515,0.00019078,2]
[350984568,1738267833099,-1800.27935739,0.00019078,2]
[350984570,1738267833110,-928.95929314,0.00019078,2]
[350984572,1738267833122,-4208.43149527,0.00019078,2]
[350984575,1738267833133,-56640.21316036,0.00019078,2]
[350984577,1738267833149,-941.96454601,0.00019078,2]
[350984579,1738267833162,-10435.9419372,0.00019078,2]
[350984582,1738267833173,-2063.52084559,0.00019078,2]
[350984584,1738267833186,-7960.91580602,0.00019078,2]
[350984587,1738267833207,-550.0,0.00019078,2]
[350984589,1738267833220,-1775.35595417,0.00019078,2]
[350984593,1738267833245,-25449.55326192,0.00019078,2]
[350984595,1738267833255,-153.0,0.00019098,2]
[350984597,1738267833264,-153.0,0.00019098,2]
[350984599,1738267833273,-2388.0,0.000191,2]
[350984601,1738267833283,-1427.0,0.000191,2]
[350984603,1738267833293,-4581.39405288,0.00019108,2]
[350984605,1738267833303,-4581.39405288,0.00019139,2]
[350984607,1738267833312,-281.67849721,0.00019144,2]
[350984610,1738267833332,-800.0,0.00019164,2]
[350984612,1738267833344,-500.0,0.00019164,2]
[350984614,1738267833355,-4581.39405288,0.00019169,2]
[350984616,1738267833365,-500.0,0.00019173,2]
[350984618,1738267833376,-271.74821165,0.00019177,2]
[350984620,1738267833386,-1032.89835385,0.00019177,5]
[350984622,1738267833397,-566.61762908,0.00019178,2]
[350984625,1738267833407,-510.4753427,0.00019178,2]
[350984627,1738267833417,-500.0,0.00019178,2]
[350984629,1738267833428,-500.0,0.00019178,2]
[350984631,1738267833438,-500.0,0.00019178,2]
[350984633,1738267833448,-719.92,0.00019178,2]
[350984635,1738267833458,-749.88,0.00019178,2]
[350984637,1738267833468,-500.0,0.00019178,2]
[350984639,1738267833478,-500.0,0.00019178,2]
[350984641,1738267833489,-500.0,0.00019178,2]
[350984643,1738267833499,-500.0,0.00019178,2]
[350984645,1738267833509,-500.0,0.00019178,2]
[350984647,1738267833519,-675.09,0.00019178,2]
[350984649,1738267833529,-556.26,0.00019178,2]
[350984651,1738267833540,-170.93636012,0.00019178,2]
[350984653,1738267833549,-500.0,0.00019178,2]
[350984655,1738267833559,-500.0,0.00019178,2]
[350984657,1738267833569,-983.7,0.00019178,2]
[350984659,1738267833579,-500.0,0.00019178,2]
[350984661,1738267833589,-500.0,0.00019178,2]
[350984663,1738267833599,-500.0,0.00019178,2]
[350984665,1738267833609,-500.0,0.00019178,2]
[350984667,1738267833620,-307.89965685,0.00019178,2]
[350984669,1738267833630,-501.15958723,0.00019178,2]
[350984671,1738267833640,-500.0,0.00019178,2]
[350984673,1738267833650,-500.0,0.00019178,2]
[350984675,1738267833660,-500.0,0.00019178,2]
[350984677,1738267833670,-500.0,0.00019178,2]
[350984679,1738267833680,-501.40800176,0.00019178,2]
[350984681,1738267833690,-500.0,0.00019178,2]
[350984683,1738267833701,-503.55530546,0.00019178,2]
[350984685,1738267833712,-5000.0,0.00019178,2]
[350984687,1738267833722,-1027.83,0.00019178,2]
[350984690,1738267833735,-508.0910026,0.00019178,2]
[350984692,1738267833746,-502.90901018,0.00019178,2]
[350984694,1738267833757,-500.0,0.00019178,2]
[350984696,1738267833767,-500.0,0.00019178,2]
[350984698,1738267833779,-500.0,0.00019178,2]
[350984700,1738267833789,-500.0,0.00019178,2]
[350984702,1738267833799,-1678.466205,0.00019178,2]
[350984704,1738267833810,-500.0,0.00019178,2]
[350984706,1738267833823,-902.13,0.00019178,2]
[350984709,1738267833839,-151.365662,0.00019178,2]
[350984711,1738267833849,-151.594685,0.00019178,2]
[350984713,1738267833859,-500.0,0.00019178,2]
[350984715,1738267833868,-500.0,0.00019178,2]
[350984717,1738267833879,-500.0,0.00019178,2]
[350984719,1738267833890,-500.0,0.00019178,2]
[350984721,1738267833900,-500.0,0.00019178,2]
[350984723,1738267833910,-500.0,0.00019178,2]
[350984725,1738267833920,-500.48708724,0.00019178,2]
[350984727,1738267833930,-1541.07618,0.00019178,2]
[350984729,1738267833940,-1479.21,0.00019178,2]
[350984731,1738267833949,-500.0,0.00019178,2]
[350984733,1738267833960,-500.0,0.00019178,2]
[350984735,1738267833970,-500.0,0.00019178,2]
[350984738,1738267833980,-1016.12,0.00019178,2]
[350984740,1738267833990,-502.51463091,0.00019178,2]
[350984742,1738267834000,-500.0,0.00019178,2]
[350984744,1738267834009,-500.0,0.00019178,2]
[350984746,1738267834020,-500.0,0.00019178,2]
[350984748,1738267834030,-500.0,0.00019178,2]
[350984750,1738267834039,-518.65978885,0.00019178,2]
[350984752,1738267834049,-500.0,0.00019178,2]
[350984754,1738267834058,-500.0,0.00019178,2]
[350984756,1738267834069,-500.0,0.00019178,2]
[350984758,1738267834079,-1192.04,0.00019178,2]
[350984760,1738267834089,-500.0,0.00019178,2]
[350984762,1738267834099,-500.0,0.00019178,2]
[350984764,1738267834109,-500.0,0.00019178,2]
[350984766,1738267834119,-500.0,0.00019178,2]
[350984768,1738267834129,-500.0,0.00019178,2]
[350984770,1738267834139,-500.0,0.00019178,2]
[350984772,1738267834149,-500.0,0.00019178,2]
[350984774,1738267834159,-500.0,0.00019178,2]
[350984776,1738267834169,-500.0,0.00019178,2]
[350984778,1738267834179,-500.0,0.00019178,2]
[350984780,1738267834189,-500.0,0.00019178,2]
[350984782,1738267834199,-500.0,0.00019178,2]
[350984785,1738267834211,-500.0,0.00019178,2]
[350984787,1738267834220,-500.0,0.00019178,2]
[350984789,1738267834230,-500.0,0.00019178,2]
[350984791,1738267834240,-1000.0,0.00019178,2]
[350984793,1738267834250,-500.0,0.00019178,2]
[350984795,1738267834259,-361.44089683,0.00019178,2]
[350984797,1738267834270,-500.0,0.00019178,2]
[350984799,1738267834279,-947.2,0.00019178,2]
[350984801,1738267834289,-1046.84,0.00019178,2]
[350984803,1738267834299,-500.0,0.00019178,2]
[350984805,1738267834310,-500.0,0.00019178,2]
[350984807,1738267834320,-500.0,0.00019178,2]
[350984809,1738267834331,-1139.94,0.00019178,2]
[350984811,1738267834342,-500.0,0.00019178,2]
[350984813,1738267834352,-500.0,0.00019178,2]
[350984815,1738267834362,-1044.61,0.00019178,2]
[350984817,1738267834372,-500.0,0.00019178,2]
[350984819,1738267834382,-890.06,0.00019178,2]
[350984821,1738267834392,-500.0,0.00019178,2]
[350984823,1738267834402,-500.0,0.00019178,2]
[350984825,1738267834413,-827.15,0.00019178,2]
[350984827,1738267834422,-500.0,0.00019178,2]
[350984830,1738267834432,-1393.51,0.00019178,2]
[350984832,1738267834442,-500.0,0.00019178,2]
[350984833,1738267834452,-500.0,0.00019178,2]
[350984836,1738267834462,-500.0,0.00019178,2]
[350984837,1738267834472,-500.0,0.00019178,2]
[350984840,1738267834482,-500.0,0.00019178,2]
[350984841,1738267834492,-500.0,0.00019178,2]
[350984843,1738267834502,-501.95,0.00019178,2]
[350984846,1738267834512,-500.0,0.00019178,2]
[350984848,1738267834522,-500.0,0.00019178,2]
[350984850,1738267834532,-500.0,0.00019178,2]
[350984852,1738267834542,-500.0,0.00019178,2]
[350984853,1738267834551,-620.83812322,0.00019178,2]
[350984854,1738267834561,-738.68,0.00019178,2]
[350984855,1738267834571,-1546.72,0.00019178,2]
[350984856,1738267834582,-500.0,0.00019178,2]
[350984857,1738267834592,-913.45,0.00019178,2]
[350984858,1738267834602,-500.0,0.00019178,2]
[350984859,1738267834612,-500.0,0.00019178,2]
[350984860,1738267834622,-500.0,0.00019178,2]
[350984861,1738267834632,-500.0,0.00019178,2]
[350984862,1738267834642,-223.6340925,0.00019178,2]
[350984863,1738267834652,-500.0,0.00019178,2]
[350984864,1738267834662,-500.0,0.00019178,2]
[350984865,1738267834672,-976.12,0.00019178,2]
[350984867,1738267834682,-500.0,0.00019178,2]
[350984869,1738267834692,-500.0,0.00019178,2]
[350984871,1738267834702,-500.0,0.00019178,2]
[350984873,1738267834712,-929.47,0.00019178,2]
[350984875,1738267834722,-500.0,0.00019178,2]
[350984877,1738267834732,-500.0,0.00019178,2]
[350984880,1738267834745,-500.0,0.00019178,2]
[350984882,1738267834755,-714.95,0.00019178,2]
[350984884,1738267834765,-546.02133883,0.00019178,2]
[350984886,1738267834775,-1087.43,0.00019178,2]
[350984888,1738267834786,-632.63,0.00019178,2]
[350984890,1738267834795,-500.0,0.00019178,2]
[350984892,1738267834805,-236.48646614,0.00019178,2]
[350984894,1738267834816,-500.0,0.00019178,2]
[350984896,1738267834826,-500.0,0.00019178,2]
[350984898,1738267834835,-869.71,0.00019178,2]
[350984900,1738267834845,-529.4,0.00019178,2]
[350984902,1738267834855,-634.69,0.00019178,2]
[350984904,1738267834865,-1453.54,0.00019178,2]
[350984906,1738267834875,-542.35,0.00019178,2]
[350984908,1738267834886,-500.0,0.00019178,2]
[350984910,1738267834895,-521.18478695,0.00019178,2]
[350984912,1738267834905,-500.0,0.00019178,2]
[350984914,1738267834916,-500.0,0.00019178,2]
[350984916,1738267834925,-500.0,0.00019178,2]
[350984918,1738267834935,-500.0,0.00019178,2]
[350984920,1738267834945,-613.84,0.00019178,2]
[350984922,1738267834954,-500.0,0.00019178,2]
[350984924,1738267834964,-500.0,0.00019178,2]
[350984927,1738267834974,-642.36,0.00019178,2]
[350984929,1738267834984,-500.0,0.00019178,2]
[350984931,1738267834994,-500.0,0.00019178,2]
[350984933,1738267835004,-500.0,0.00019178,2]
[350984935,1738267835014,-500.0,0.00019178,2]
[350984937,1738267835023,-500.0,0.00019178,2]
[350984939,1738267835033,-500.0,0.00019178,2]
[350984941,1738267835044,-500.0,0.00019178,2]
[350984943,1738267835054,-500.0,0.00019178,2]
[350984945,1738267835064,-500.0,0.00019178,2]
[350984947,1738267835073,-508.3,0.00019178,2]
[350984949,1738267835083,-500.0,0.00019178,2]
[350984951,1738267835093,-500.0,0.00019178,2]
[350984953,1738267835103,-500.0,0.00019178,2]
[350984955,1738267835112,-500.0,0.00019178,2]
[350984957,1738267835122,-517.93631171,0.00019178,2]
[350984959,1738267835132,-350.50834407,0.00019178,2]
[350984961,1738267835142,-500.0,0.00019178,2]
[350984963,1738267835151,-500.0,0.00019178,2]
[350984965,1738267835161,-500.0,0.00019178,2]
[350984967,1738267835171,-500.0,0.00019178,2]
[350984969,1738267835181,-500.0,0.00019178,2]
[350984971,1738267835191,-500.0,0.00019178,2]
[350984974,1738267835201,-500.0,0.00019178,2]
[350984976,1738267835212,-529.35,0.00019178,2]
[350984978,1738267835221,-500.0,0.00019178,2]
[350984980,1738267835230,-500.0,0.00019178,2]
[350984982,1738267835240,-500.0,0.00019178,2]
[350984984,1738267835249,-500.0,0.00019178,2]
[350984986,1738267835259,-1300.56,0.00019178,2]
[350984988,1738267835268,-500.0,0.00019178,2]
[350984990,1738267835278,-500.0,0.00019178,2]
[350984992,1738267835287,-694.46,0.00019178,2]
[350984994,1738267835297,-946.12,0.00019178,2]
[350984996,1738267835307,-695.67,0.00019178,2]
[350984998,1738267835317,-500.0,0.00019178,2]
[350985000,1738267835326,-500.0,0.00019178,2]
[350985002,1738267835336,-501.34858186,0.00019178,2]
[350985004,1738267835347,-500.0,0.00019178,2]
[350985006,1738267835357,-500.0,0.00019178,2]
[350985008,1738267835367,-500.0,0.00019178,2]
[350985040,1738267835649,-500.0,0.00019178,2]
[350985042,1738267835660,-505.50494027,0.00019178,2]
[350985044,1738267835671,-500.0,0.00019178,2]
[350985046,1738267835681,-500.0,0.00019178,2]
[350985048,1738267835692,-166.05342681,0.00019178,2]
[350985050,1738267835702,-500.0,0.00019178,2]
[350985052,1738267835711,-500.0,0.00019178,2]
[350985054,1738267835721,-500.0,0.00019178,2]
[350985056,1738267835732,-500.0,0.00019178,2]
[350985058,1738267835745,-1407.99,0.00019178,2]
[350985060,1738267835755,-500.0,0.00019178,2]
[350985062,1738267835765,-500.0,0.00019178,2]
[350985065,1738267835775,-500.0,0.00019178,2]
[350985067,1738267835785,-500.0,0.00019178,2]
[350985069,1738267835795,-515.7,0.00019178,2]
[350985071,1738267835805,-500.0,0.00019178,2]
[350985073,1738267835817,-2917.26,0.00019178,2]
[350985075,1738267835827,-1047.99,0.00019178,2]
[350985077,1738267835837,-1304.56,0.00019178,2]
[350985079,1738267835846,-500.0,0.00019178,2]
[350985081,1738267835856,-500.0,0.00019178,2]
[350985082,1738267835865,-500.0,0.00019178,2]
[350985084,1738267835875,-500.0,0.00019178,2]
[350985086,1738267835884,-500.0,0.00019178,2]
[350985088,1738267835894,-508.97,0.00019178,2]
[350985090,1738267835904,-892.83,0.00019178,2]
[350985092,1738267835913,-500.0,0.00019178,2]
[350985094,1738267835923,-500.0,0.00019178,2]
[350985096,1738267835933,-500.0,0.00019178,2]
[350985098,1738267835942,-500.0,0.00019178,2]
[350985100,1738267835952,-1261.66,0.00019178,2]
[350985102,1738267835961,-1045.92,0.00019178,2]
[350985104,1738267835970,-500.0,0.00019178,2]
[350985106,1738267835980,-500.0,0.00019178,2]
[350985108,1738267835991,-2046.72,0.00019178,2]
[350985111,1738267836000,-612.58848042,0.00019178,2]
[350985112,1738267836009,-500.0,0.00019178,2]
[350985115,1738267836020,-426.19671324,0.00019178,2]
[350985117,1738267836030,-577.46,0.00019178,2]
[350985118,1738267836039,-500.0,0.00019178,2]
[350985120,1738267836049,-592.42,0.00019178,2]
[350985122,1738267836059,-500.0,0.00019178,2]
[350985125,1738267836069,-500.0,0.00019178,2]
[350985127,1738267836079,-500.0,0.00019178,2]
[350985129,1738267836090,-2290.12,0.00019178,2]
[350985131,1738267836099,-500.0,0.00019178,2]
[350985133,1738267836109,-500.0,0.00019178,2]
[350985135,1738267836119,-500.0,0.00019178,2]
[350985137,1738267836130,-500.0,0.00019178,2]
[350985139,1738267836140,-500.0,0.00019178,2]
[350985141,1738267836150,-500.0,0.00019178,2]
[350985143,1738267836160,-500.0,0.00019178,2]
[350985145,1738267836170,-915.96,0.00019178,2]
[350985147,1738267836179,-507.29,0.00019178,2]
[350985149,1738267836189,-500.0,0.00019178,2]
[350985151,1738267836198,-500.0,0.00019178,2]
[350985153,1738267836208,-156.29471802,0.00019178,2]
[350985155,1738267836218,-500.0,0.00019178,2]
[350985157,1738267836228,-504.23584258,0.00019178,2]
[350985159,1738267836238,-500.0,0.00019178,2]
[350985161,1738267836249,-1777.16,0.00019178,2]
[350985163,1738267836259,-500.0,0.00019178,2]
[350985165,1738267836269,-607.81,0.00019178,2]
[350985167,1738267836279,-500.0,0.00019178,2]
[350985169,1738267836288,-2020.59,0.00019178,2]
[350985171,1738267836299,-500.0,0.00019178,2]
[350985173,1738267836309,-500.0,0.00019178,2]
[350985175,1738267836319,-500.0,0.00019178,2]
[350985177,1738267836328,-686.95,0.00019178,2]
[350985179,1738267836338,-500.0,0.00019178,2]
[350985181,1738267836347,-2104.26,0.00019178,2]
[350985183,1738267836357,-500.0,0.00019178,2]
[350985185,1738267836367,-500.0,0.00019178,2]
[350985188,1738267836377,-500.0,0.00019178,2]
[350985190,1738267836387,-1992.17,0.00019178,2]
[350985192,1738267836396,-534.34844371,0.00019178,2]
[350985194,1738267836406,-502.90326278,0.00019178,2]
[350985196,1738267836416,-657.49,0.00019178,2]
[350985198,1738267836427,-500.0,0.00019178,2]
[350985200,1738267836437,-1465.79,0.00019178,2]
[350985202,1738267836447,-500.0,0.00019178,2]
[350985204,1738267836457,-533.83,0.00019178,2]
[350985206,1738267836467,-500.0,0.00019178,2]
[350985208,1738267836477,-500.0,0.00019178,2]
[350985210,1738267836487,-500.0,0.00019178,2]
[350985212,1738267836496,-500.0,0.00019178,2]
[350985214,1738267836505,-500.0,0.00019178,2]
[350985216,1738267836516,-500.0,0.00019178,2]
[350985218,1738267836525,-489.42466032,0.00019178,2]
[350985220,1738267836534,-500.0,0.00019178,2]
[350985222,1738267836544,-500.0,0.00019178,2]
[350985224,1738267836553,-500.0,0.00019178,2]
[350985226,1738267836563,-512.68785437,0.00019178,2]
[350985228,1738267836572,-500.0,0.00019178,2]
[350985230,1738267836581,-684.26,0.00019178,2]
[350985232,1738267836591,-500.0,0.00019178,2]
[350985234,1738267836600,-517.95202597,0.00019178,2]
[350985236,1738267836610,-503.25120103,0.00019178,2]
[350985238,1738267836620,-500.0,0.00019178,2]
[350985240,1738267836629,-500.0,0.00019178,2]
[350985242,1738267836640,-500.0,0.00019178,2]
[350985244,1738267836649,-211.32326405,0.00019178,2]
[350985246,1738267836659,-500.0,0.00019178,2]
[350985248,1738267836669,-500.0,0.00019178,2]
[350985251,1738267836680,-500.0,0.00019178,2]
[350985253,1738267836689,-500.0,0.00019178,2]
[350985255,1738267836698,-500.0,0.00019178,2]
[350985257,1738267836708,-501.13617712,0.00019178,2]
[350985258,1738267836718,-2385.81,0.00019178,2]
[350985261,1738267836728,-500.0,0.00019178,2]
[350985263,1738267836740,-500.0,0.00019178,2]
[350985265,1738267836750,-500.0,0.00019178,2]
[350985267,1738267836760,-654.08,0.00019178,2]
[350985269,1738267836769,-952.15,0.00019178,2]
[350985271,1738267836779,-500.0,0.00019178,2]
[350985273,1738267836789,-343.97095135,0.00019178,2]
[350985275,1738267836798,-500.0,0.00019178,2]
[350985277,1738267836807,-500.0,0.00019178,2]
[350985279,1738267836818,-500.0,0.00019178,2]
[350985281,1738267836827,-500.0,0.00019178,2]
[350985283,1738267836836,-501.39487468,0.00019178,2]
[350985285,1738267836846,-500.0,0.00019178,2]
[350985287,1738267836855,-500.0,0.00019178,2]
[350985289,1738267836864,-1241.79,0.00019178,2]
[350985291,1738267836873,-500.0,0.00019178,2]
[350985293,1738267836883,-500.0,0.00019178,2]
[350985295,1738267836893,-510.08196053,0.00019178,2]
[350985297,1738267836902,-503.30469451,0.00019178,2]
[350985299,1738267836912,-500.0,0.00019178,2]
[350985301,1738267836921,-500.0,0.00019178,2]
[350985303,1738267836931,-500.0,0.00019178,2]
[350985305,1738267836940,-647.61586519,0.00019178,2]
[350985307,1738267836949,-500.0,0.00019178,2]
[350985309,1738267836959,-500.0,0.00019178,2]
[350985311,1738267836968,-500.0,0.00019178,2]
[350985313,1738267836977,-500.0,0.00019178,2]
[350985315,1738267836987,-500.0,0.00019178,2]
[350985317,1738267836996,-1001.66,0.00019178,2]
[350985319,1738267837005,-500.0,0.00019178,2]
[350985321,1738267837015,-713.88,0.00019178,2]
[350985323,1738267837025,-500.0,0.00019178,2]
[350985325,1738267837034,-500.0,0.00019178,2]
[350985327,1738267837044,-500.0,0.00019178,2]
[350985329,1738267837053,-500.0,0.00019178,2]
[350985330,1738267837063,-500.0,0.00019178,2]
[350985331,1738267837073,-500.0,0.00019178,2]
[350985332,1738267837082,-500.0,0.00019178,2]
[350985333,1738267837091,-500.0,0.00019178,2]
[350985334,1738267837101,-704.43,0.00019178,2]
[350985335,1738267837111,-585.36811445,0.00019178,2]
[350985336,1738267837120,-500.0,0.00019178,2]
[350985337,1738267837129,-500.0,0.00019178,2]
[350985338,1738267837138,-500.0,0.00019178,2]
[350985340,1738267837148,-500.0,0.00019178,2]
[350985342,1738267837157,-2049.23,0.00019178,2]
[350985344,1738267837166,-1007.22,0.00019178,2]
[350985346,1738267837175,-872.41,0.00019178,2]
[350985348,1738267837184,-500.0,0.00019178,2]
[350985350,1738267837193,-500.0,0.00019178,2]
[350985352,1738267837203,-1165.24,0.00019178,2]
[350985354,1738267837212,-683.16,0.00019178,2]
[350985356,1738267837221,-695.01,0.00019178,2]
[350985358,1738267837230,-500.0,0.00019178,2]
[350985360,1738267837239,-809.41,0.00019178,2]
[350985362,1738267837248,-500.0,0.00019178,2]
[350985364,1738267837258,-500.0,0.00019178,2]
[350985366,1738267837268,-1797.22,0.00019178,2]
[350985368,1738267837277,-500.0,0.00019178,2]
[350985370,1738267837286,-1359.99,0.00019178,2]
[350985372,1738267837295,-500.0,0.00019178,2]
[350985374,1738267837305,-500.0,0.00019178,2]
[350985376,1738267837315,-504.72947687,0.00019178,2]
[350985378,1738267837324,-500.0,0.00019178,2]
[350985380,1738267837334,-500.0,0.00019178,2]
[350985382,1738267837343,-500.0,0.00019178,2]
[350985384,1738267837353,-500.0,0.00019178,2]
[350985386,1738267837362,-449.4838515,0.00019178,2]
[350985388,1738267837372,-500.0,0.00019178,2]
[350985390,1738267837386,-4203.96,0.00019178,2]
[350985393,1738267837405,-500.0,0.00019178,2]
[350985396,1738267837421,-732.34,0.00019178,2]
[350985398,1738267837434,-1044.15,0.00019178,2]
[350985401,1738267837451,-723.49,0.00019178,2]
[350985404,1738267837467,-500.0,0.00019178,2]
[350985408,1738267837484,-500.0,0.00019178,2]
[350985411,1738267837500,-500.0,0.00019178,2]
[350985414,1738267837515,-1017.45,0.00019178,2]
[350985418,1738267837527,-500.0,0.00019178,2]
[350985420,1738267837543,-500.0,0.00019178,2]
[350985423,1738267837559,-1493.6,0.00019178,2]
[350985426,1738267837575,-500.0,0.00019178,2]
[350985428,1738267837591,-503.70416984,0.00019178,2]
[350985433,1738267837606,-500.0,0.00019178,2]
[350985437,1738267837623,-500.0,0.00019178,2]
[350985442,1738267837640,-500.0,0.00019178,2]
[350985445,1738267837658,-1259.28,0.00019178,2]
[350985447,1738267837674,-500.0,0.00019178,2]
[350985450,1738267837690,-557.26,0.00019178,2]
[350985455,1738267837707,-500.0,0.00019178,2]
[350985458,1738267837721,-500.0,0.00019178,2]
[350985462,1738267837737,-500.0,0.00019178,2]
[350985464,1738267837750,-1010.55,0.00019178,2]
[350985467,1738267837767,-500.0,0.00019178,2]
[350985469,1738267837782,-188.16331163,0.00019178,2]
[350985471,1738267837793,-550.91102555,0.00019178,2]
[350985474,1738267837807,-500.0,0.00019178,2]
[350985477,1738267837824,-500.0,0.00019178,2]
[350985479,1738267837838,-500.0,0.00019178,2]
[350985481,1738267837850,-933.42,0.00019178,2]
[350985484,1738267837864,-500.0,0.00019178,2]
[350985486,1738267837877,-500.0,0.00019178,2]
[350985489,1738267837891,-500.0,0.00019178,2]
[350985491,1738267837904,-500.0,0.00019178,2]
[350985494,1738267837918,-500.0,0.00019178,2]
[350985496,1738267837931,-500.0,0.00019178,2]
[350985499,1738267837945,-500.0,0.00019178,2]
[350985501,1738267837959,-500.0,0.00019178,2]
[350985504,1738267837972,-943.49,0.00019178,2]
[350985507,1738267837993,-500.0,0.00019178,2]
[350985509,1738267838007,-500.0,0.00019178,2]
[350985512,1738267838020,-500.0,0.00019178,2]
[350985514,1738267838034,-500.0,0.00019178,2]
[350985516,1738267838047,-500.0,0.00019178,2]
[350985519,1738267838061,-590.72,0.00019178,2]
[350985521,1738267838074,-500.0,0.00019178,2]
[350985524,1738267838087,-500.0,0.00019178,2]
[350985526,1738267838101,-500.0,0.00019178,2]
[350985529,1738267838115,-500.0,0.00019178,2]
[350985531,1738267838129,-500.0,0.00019178,2]
[350985533,1738267838141,-826.04,0.00019178,2]
[350985536,1738267838155,-500.0,0.00019178,2]
[350985538,1738267838169,-500.0,0.00019178,2]
[350985541,1738267838183,-500.0,0.00019178,2]
[350985543,1738267838197,-1147.91,0.00019178,2]
[350985545,1738267838210,-500.0,0.00019178,2]
[350985548,1738267838224,-508.44940826,0.00019178,2]
[350985550,1738267838237,-500.0,0.00019178,2]
[350985553,1738267838249,-500.0,0.00019178,2]
[350985555,1738267838263,-500.0,0.00019178,2]
[350985558,1738267838276,-500.0,0.00019178,2]
[350985560,1738267838289,-658.37,0.00019178,2]
[350985562,1738267838303,-826.2,0.00019178,2]
[350985565,1738267838316,-500.0,0.00019178,2]
[350985567,1738267838330,-1338.93,0.00019178,2]
[350985570,1738267838343,-533.19677617,0.00019178,2]
[350985572,1738267838356,-500.0,0.00019178,2]
[350985574,1738267838370,-500.0,0.00019178,2]
[350985577,1738267838383,-500.0,0.00019178,2]
[350985580,1738267838396,-500.0,0.00019178,2]
[350985584,1738267838410,-683.11,0.00019178,2]
[350985586,1738267838423,-814.88,0.00019178,2]
[350985590,1738267838437,-500.0,0.00019178,2]
[350985593,1738267838450,-509.7968452,0.00019178,2]
[350985597,1738267838464,-1204.43,0.00019178,2]
[350985600,1738267838477,-506.71022716,0.00019178,2]
[350985604,1738267838492,-500.0,0.00019178,2]
[350985606,1738267838505,-679.48,0.00019178,2]
[350985609,1738267838519,-500.0,0.00019178,2]
[350985611,1738267838532,-523.39,0.00019178,2]
[350985613,1738267838545,-497.7416155,0.00019178,2]
[350985616,1738267838559,-500.0,0.00019178,2]
[350985618,1738267838571,-497.2644259,0.00019178,2]
[350985621,1738267838585,-500.0,0.00019178,2]
[350985623,1738267838598,-998.15,0.00019178,2]
[350985626,1738267838612,-500.0,0.00019178,2]